fUSD/lending_fUSD_20250926
["ID","MTS","AMOUNT","RATE_DAILY","PERIOD"]
[387839025,1758913845485,-65121.44063733,0.0002,2]
[387839084,1758913849308,-500.0,0.00018618,2]
[387839085,1758913849319,-194.39308694,0.00018618,2]
[387839086,1758913849329,-500.0,0.00018618,2]
[387839087,1758913849339,-500.0,0.00018618,2]
[387839088,1758913849349,-500.0,0.00018618,2]
[387839089,1758913849359,-543.81004164,0.00018618,2]
[387839090,1758913849368,-500.0,0.00018618,2]
[387839091,1758913849378,-500.0,0.00018618,2]
[387839092,1758913849388,-500.0,0.00018618,2]
[387839093,1758913849398,-500.0,0.00018618,2]
[387839094,1758913849408,-500.0,0.00018618,2]
[387839095,1758913849418,-500.0,0.00018618,2]
[387839096,1758913849428,-500.0,0.00018618,2]
[387839097,1758913849438,-500.0,0.00018618,2]
[387839098,1758913849447,-500.0,0.00018618,2]
[387839099,1758913849457,-500.0,0.00018618,2]
[387839100,1758913849466,-500.0,0.00018618,2]
[387839101,1758913849476,-500.0,0.00018618,2]
[387839102,1758913849486,-500.0,0.00018618,2]
[387839103,1758913849495,-500.0,0.00018618,2]
[387839104,1758913849505,-500.0,0.00018618,2]
[387839105,1758913849515,-500.0,0.00018618,2]
[387839106,1758913849524,-500.0,0.00018618,2]
[387839107,1758913849534,-500.0,0.00018618,2]
[387839108,1758913849544,-500.0,0.00018618,2]
[387839109,1758913849553,-500.0,0.00018618,2]
[387839110,1758913849563,-500.0,0.00018618,2]
[387839111,1758913849572,-500.0,0.00018618,2]
[387839112,1758913849582,-500.0,0.00018618,2]
[387839113,1758913849591,-500.0,0.00018618,2]
[387839114,1758913849601,-150.0,0.00019999,2]
[387839115,1758913849611,-10971.50417186,0.0002,2]
[387839116,1758913849620,-150.0,0.0002,2]
[387839117,1758913849630,-500.0,0.0002,2]
[387839118,1758913849640,-500.0,0.0002,2]
[387839119,1758913849651,-500.0,0.0002,2]
[387839120,1758913849660,-639.602,0.0002,2]
[387839121,1758913849670,-3396.0,0.0002,2]
[387839122,1758913849679,-417.474,0.0002,2]
[387839123,1758913849689,-603.0,0.0002,2]
[387839124,1758913849698,-1305.0,0.0002,2]
[387839125,1758913849707,-21143.06369955,0.0002,2]
[387839126,1758913849719,-2648.48833118,0.0002,2]
[387839127,1758913849735,-139940.10044152,0.0002,2]
[387839128,1758913849746,-1039.974177,0.0002,2]
[387839129,1758913849757,-3659.41018044,0.0002,2]
[387839130,1758913849856,-608.56444039,0.0002,2]
[387839132,1758913852678,-2233.7,0.0002,2]
[387839133,1758913852735,-17912.68493371,0.0002,2]
[387839134,1758913852896,-2479.05347954,0.0002,2]
[387839135,1758913852908,-15618.75588908,0.0002,2]
[387839220,1758914362648,166.12,0.00018418,2]
[387839223,1758914373338,421.33,0.00018418,2]
[387839229,1758914393672,1000.0,0.00018419,2]
[387839238,1758914441037,150.0,0.0001837,7]
[387839239,1758914459320,162.0,0.0002,30]
[387839240,1758914459502,153.0,0.0002,30]
[387839241,1758914459702,153.0,0.0002,30]
[387839242,1758914459864,153.0,0.0002,30]
[387839243,1758914459976,153.0,0.0002,30]
[387839244,1758914460122,153.0,0.0002,30]
[387839245,1758914460372,153.0,0.0002,30]
[387839246,1758914460867,153.0,0.0002,30]
[387839247,1758914460972,153.0,0.0002,30]
[387839248,1758914461114,153.0,0.0002,30]
[387839249,1758914461331,153.0,0.0002,30]
[387839250,1758914461654,153.0,0.0002,30]
[387839251,1758914461771,153.0,0.0002,30]
[387839252,1758914462041,153.0,0.0002,30]
[387839253,1758914462180,153.0,0.0002,30]
[387839254,1758914462608,153.0,0.0002,30]
[387839255,1758914462764,153.0,0.0002,30]
[387839256,1758914463246,153.0,0.0002,30]
[387839257,1758914463450,153.0,0.0002,30]
[387839261,1758914498741,154.194511,0.00018156,2]
[387839270,1758914541724,163.48,9.137e-05,2]
[387839271,1758914542035,163.48,0.00013705,2]
[387839272,1758914542220,163.48,0.00018273,2]
[387839278,1758914637166,9238.58,0.00018433,2]
[387839297,1758914714964,150.0,0.000184,2]
[387839298,1758914715084,150.0,0.00018,2]
[387839299,1758914715334,150.0,0.00018,2]
[387839300,1758914715474,150.0,0.00018167,2]
[387839301,1758914715528,150.0,0.00018333,2]
[387839302,1758914715586,150.0,0.000185,2]
[387839303,1758914716590,150.0,0.00018,2]
[387839304,1758914720219,150.0,0.00018,2]
[387839307,1758914723059,150.0,0.00018,2]
[387839308,1758914724499,150.0,0.00018,2]
[387839309,1758914724537,150.0,0.000185,2]
[387839310,1758914725214,150.0,0.00018,2]
[387839311,1758914728230,150.0,0.00018,2]
[387839312,1758914728405,150.0,0.000185,2]
[387839313,1758914736778,150.0,0.00018,2]
[387839314,1758914737874,150.0,0.00018,2]
[387839315,1758914738156,150.0,0.00018,2]
[387839316,1758914738235,150.0,0.000185,2]
[387839317,1758914739295,150.0,0.00018,2]
[387839318,1758914739352,150.0,0.000184,2]
[387839330,1758914777787,187.44,0.0001833,2]
[387839339,1758914811320,411.11,0.0001833,2]
[387839387,1758914991352,219.21928316,0.00018117,2]
[387839391,1758915013474,3833.33,0.00018166,2]
[387839433,1758915033919,-332.28,0.00018554,2]
[387839434,1758915033930,-300.0,0.00018554,2]
[387839435,1758915033940,-195.0,0.00018554,2]
[387839436,1758915033950,-2500.0,0.00018554,2]
[387839437,1758915033960,-1742.3030585,0.00018555,2]
[387839438,1758915033970,-300.0,0.00018555,2]
[387839439,1758915033980,-300.0,0.00018556,2]
[387839440,1758915033990,-1128.35903817,0.00018558,2]
[387839441,1758915034000,-320.55,0.00018588,2]
[387839442,1758915034009,-769.91,0.0001863,2]
[387839443,1758915034019,-1200.0,0.00018646,2]
[387839444,1758915034029,-159.751321,0.00018647,2]
[387839445,1758915034039,-161.540212,0.00018647,2]
[387839446,1758915034048,-150.0,0.00018667,2]
[387839447,1758915034058,-300.0,0.00018745,2]
[387839448,1758915034067,-850.0,0.00018745,2]
[387839449,1758915034077,-405.0,0.00018746,2]
[387839450,1758915034086,-500.0,0.00018746,2]
[387839451,1758915034096,-175.09978009,0.00018746,2]
[387839452,1758915034106,-357.46653693,0.00018746,2]
[387839453,1758915034116,-500.0,0.00018746,2]
[387839454,1758915034126,-500.0,0.00018746,2]
[387839455,1758915034135,-500.0,0.00018746,2]
[387839456,1758915034145,-500.0,0.00018746,2]
[387839457,1758915034155,-500.0,0.00018746,2]
[387839458,1758915034166,-500.0,0.00018746,2]
[387839459,1758915034176,-500.0,0.00018746,2]
[387839460,1758915034185,-500.0,0.00018746,2]
[387839461,1758915034195,-19242.38,0.00018751,2]
[387839462,1758915034205,-150.0,0.000188,2]
[387839463,1758915034215,-150.0,0.000188,2]
[387839464,1758915034224,-150.0,0.00018833,2]
[387839465,1758915034234,-1852.42,0.00018849,2]
[387839466,1758915034244,-646.64,0.00018861,2]
[387839467,1758915034254,-250.0,0.00018896,2]
[387839468,1758915034266,-277.35679052,0.00018999,2]
[387839469,1758915034277,-209.40437684,0.00018999,2]
[387839470,1758915034287,-150.0,0.00019,2]
[387839471,1758915034297,-150.0,0.00019,2]
[387839472,1758915034308,-150.0,0.00019,2]
[387839473,1758915034318,-150.0,0.00019,2]
[387839474,1758915034328,-150.0,0.00019,2]
[387839475,1758915034339,-150.0,0.00019,2]
[387839476,1758915034348,-150.0,0.00019,2]
[387839477,1758915034358,-11000.0,0.00019,2]
[387839478,1758915034368,-208.67263598,0.00019,2]
[387839479,1758915034378,-196.10041377,0.00019,2]
[387839480,1758915034387,-322.6107,0.00019002,2]
[387839481,1758915034397,-151.0,0.00019002,2]
[387839482,1758915034407,-160.0,0.00019002,2]
[387839483,1758915034417,-151.0,0.00019002,2]
[387839484,1758915034427,-151.0,0.00019002,2]
[387839485,1758915034436,-151.0,0.00019002,2]
[387839486,1758915034445,-151.0,0.00019002,2]
[387839487,1758915034455,-151.0,0.00019002,2]
[387839488,1758915034465,-151.0,0.00019002,2]
[387839489,1758915034475,-151.0,0.00019002,2]
[387839490,1758915034485,-151.0,0.00019002,2]
[387839491,1758915034495,-151.0,0.00019002,2]
[387839492,1758915034504,-151.0,0.00019002,2]
[387839493,1758915034514,-151.0,0.00019002,2]
[387839494,1758915034527,-150.0,0.00019167,2]
[387839495,1758915034536,-1305.52,0.00019178,2]
[387839496,1758915034546,-775.37141671,0.00019196,2]
[387839497,1758915034555,-150.0,0.000192,4]
[387839498,1758915034565,-150.0,0.000192,4]
[387839499,1758915034575,-236.32,0.00019277,2]
[387839500,1758915034585,-150.0,0.00019333,4]
[387839501,1758915034595,-1195.25,0.00019342,2]
[387839502,1758915034604,-518.70886625,0.00019398,2]
[387839503,1758915034614,-22409.5154928,0.000194,2]
[387839504,1758915034652,-284.23252147,0.000194,2]
[387839505,1758915034664,-1493.16572442,0.000194,2]
[387839506,1758915034848,-7246.90557835,0.000194,2]
[387839507,1758915034919,-1082.82366133,0.000194,2]
[387839508,1758915034946,-14409.84234429,0.000194,2]
[387839509,1758915034959,-819.72465213,0.000194,2]
[387839510,1758915035019,-907.126961,0.000194,2]
[387839511,1758915035031,-363.75840896,0.000194,2]
[387839512,1758915035062,-521.39055234,0.000194,2]
[387839513,1758915035107,-2210.0,0.000194,2]
[387839514,1758915035118,-19119.69617231,0.000194,2]
[387839515,1758915035130,-942.14617011,0.000194,2]
[387839516,1758915035141,-506.58,0.000194,2]
[387839517,1758915035213,-7042.36242039,0.000194,2]
[387839518,1758915035223,-10646.33046805,0.000194,2]
[387839519,1758915035235,-3825.15427976,0.000194,2]
[387839520,1758915035246,-2055.81767418,0.000194,2]
[387839797,1758915040964,-1089.15485117,0.000194,2]
[387839798,1758915041002,-1374.20020265,0.000194,2]
[387839799,1758915041039,-9650.07186429,0.000194,2]
[387839800,1758915041049,-171.81,0.00019415,2]
[387839801,1758915041059,-168.0,0.00019456,2]
[387839802,1758915041068,-180.0,0.00019482,2]
[387839803,1758915041078,-150.0,0.000195,4]
[387839804,1758915041088,-150.0,0.000195,4]
[387839805,1758915041097,-150.0,0.000195,4]
[387839806,1758915041107,-150.0,0.000195,4]
[387839807,1758915041116,-168.0,0.0001955,2]
[387839808,1758915041126,-150.0,0.000196,4]
[387839809,1758915041136,-150.0,0.000196,4]
[387839810,1758915041145,-232.6574,0.00019667,2]
[387839811,1758915041155,-150.0,0.00019667,4]
[387839812,1758915041164,-277.7628,0.000197,2]
[387839813,1758915041173,-163.4721,0.000197,2]
[387839814,1758915041183,-5562.86915486,0.000197,3]
[387839815,1758915041246,-1011.47123368,0.000197,3]
[387839829,1758915043587,-1026.29582866,0.000197,3]
[387839830,1758915043677,-1500.91953404,0.000197,3]
[387839831,1758915043689,-923.38108705,0.000197,3]
[387839832,1758915043701,-1375.06316171,0.000197,3]
[387839833,1758915043711,-516.91207795,0.000197,3]
[387839834,1758915043720,-43.13426887,0.000197,2]
[387839835,1758915043774,-25606.65503113,0.000197,2]
[387839836,1758915043783,-167.40266496,0.00019704,2]
[387839837,1758915043792,-168.0,0.00019707,2]
[387839838,1758915043803,-150.0,0.00019732,2]
[387839839,1758915043812,-13334.32544502,0.00019791,2]
[387839840,1758915043822,-143329.2001,0.000198,2]
[387839841,1758915043832,-572.0,0.00019804,2]
[387839842,1758915043842,-2182.119,0.00019817,2]
[387839843,1758915043852,-4179.0,0.00019817,2]
[387839844,1758915043861,-18905.0,0.00019817,2]
[387839845,1758915043870,-465.437058,0.00019818,2]
[387839847,1758915043879,-164.2404879,0.00019818,2]
[387839848,1758915043889,-465.43705796,0.00019827,2]
[387839849,1758915043897,-150.0,0.00019833,4]
[387839850,1758915043907,-465.43705796,0.00019836,2]
[387839851,1758915043916,-200.0,0.0001984,2]
[387839852,1758915043927,-328.76177538,0.00019842,2]
[387839853,1758915043937,-465.43705796,0.00019845,2]
[387839854,1758915043946,-561.94971319,0.00019847,2]
[387839855,1758915043955,-2668.63143306,0.00019849,2]
[387839856,1758915043965,-465.43705796,0.00019854,2]
[387839857,1758915043974,-732.19719645,0.00019855,2]
[387839858,1758915043983,-2668.63143306,0.00019856,2]
[387839860,1758915043992,-328.76177538,0.00019856,2]
[387839861,1758915044001,-451.649109,0.0001986,2]
[387839862,1758915044011,-304.99758062,0.00019863,2]
[387839864,1758915044020,-465.43705796,0.00019864,2]
[387839866,1758915044029,-2668.63143306,0.00019868,2]
[387839868,1758915044038,-465.43705796,0.00019873,2]
[387839870,1758915044048,-304.99758062,0.00019876,2]
[387839872,1758915044057,-2587.85061408,0.00019878,2]
[387839873,1758915044066,-561.94971319,0.00019878,2]
[387839874,1758915044076,-465.43705796,0.00019882,2]
[387839875,1758915044085,-779.80515926,0.00019885,2]
[387839876,1758915044094,-561.94971319,0.0001989,2]
[387839877,1758915044103,-465.43705796,0.00019891,2]
[387839878,1758915044112,-779.80515926,0.00019897,2]
[387839879,1758915044122,-304.99758062,0.00019898,2]
[387839880,1758915044132,-156.05759828,0.00019899,2]
[387839881,1758915044141,-5000.0,0.000199,2]
[387839882,1758915044150,-285.87554813,0.000199,2]
[387839883,1758915044159,-465.43705796,0.000199,2]
[387839884,1758915044169,-374.0981918,0.000199,2]
[387839885,1758915044178,-696.61316425,0.000199,2]
[387839886,1758915044187,-637.60749336,0.000199,2]
[387839887,1758915044196,-304.99758062,0.00019906,2]
[387839888,1758915044205,-732.19719645,0.00019907,2]
[387839889,1758915044215,-2668.63143306,0.00019908,2]
[387839890,1758915044224,-328.76177538,0.00019908,2]
[387839891,1758915044233,-328.76177538,0.00019915,2]
[387839892,1758915044242,-561.94971319,0.00019916,2]
[387839893,1758915044251,-3538.9218641,0.00019918,2]
[387839894,1758915044260,-99083.6930168,0.00019918,2]
[387839895,1758915044272,-162.1368951,0.00019918,2]
[387839896,1758915044282,-23998.5985458,0.00019918,2]
[387839897,1758915044291,-14619.08636748,0.00019918,2]
[387839899,1758915047046,-889.44815095,0.00019918,2]
[387839900,1758915047057,-2426.0,0.00019918,2]
[387839901,1758915047193,-1085.9496155,0.00019918,2]
[387839905,1758915047357,-813.8268,0.00019918,2]
[387839906,1758915047369,-5352.36916197,0.00019918,2]
[387839907,1758915047379,-779.80515926,0.00019918,2]
[387839908,1758915047388,-304.99758062,0.0001992,2]
[387839909,1758915047397,-304.99758062,0.00019921,2]
[387839910,1758915047407,-451.649109,0.00019923,2]
[387839911,1758915047416,-561.94971319,0.00019924,2]
[387839912,1758915047426,-2668.63143306,0.00019927,2]
[387839913,1758915047435,-328.76177538,0.00019929,2]
[387839914,1758915047445,-732.19719645,0.0001993,2]
[387839915,1758915047454,-561.94971319,0.00019937,2]
[387839916,1758915047463,-1299.304,0.00019937,2]
[387839917,1758915047473,-883.38757727,0.00019942,2]
[387839918,1758915047543,-804.93567262,0.00019942,2]
[387839919,1758915050590,-6662.44772208,0.00019942,2]
[387839920,1758915050599,-167.40266496,0.00019943,2]
[387839921,1758915050609,-779.80515926,0.00019952,2]
[387839922,1758915050618,-451.649109,0.00019956,2]
[387839923,1758915050627,-451.649109,0.00019957,2]
[387839924,1758915050637,-2668.63143306,0.00019958,2]
[387839925,1758915050646,-561.94971319,0.00019958,2]
[387839926,1758915050655,-779.80515926,0.00019959,2]
[387839927,1758915050665,-732.19719645,0.00019959,2]
[387839928,1758915050676,-168.0,0.00019964,2]
[387839929,1758915050686,-732.19719645,0.00019964,2]
[387839930,1758915050695,-2668.63143306,0.00019969,2]
[387839931,1758915050704,-328.76177538,0.00019969,2]
[387839932,1758915050713,-1955.51014684,0.00019972,2]
[387839933,1758915050723,-298.15086927,0.00019973,2]
[387839934,1758915050732,-500.0,0.00019973,2]
[387839935,1758915050741,-500.0,0.00019973,2]
[387839936,1758915050750,-500.0,0.00019973,2]
[387839937,1758915050759,-500.0,0.00019973,2]
[387839938,1758915050768,-301.02052774,0.00019973,2]
[387839939,1758915050777,-500.0,0.00019973,2]
[387839940,1758915050787,-500.0,0.00019973,2]
[387839941,1758915050796,-500.0,0.00019973,2]
[387839942,1758915050808,-500.0,0.00019973,2]
[387839943,1758915050818,-500.0,0.00019973,2]
[387839944,1758915050829,-451.649109,0.00019973,2]
[387839945,1758915050839,-15584.07601132,0.0001998,2]
[387839946,1758915050922,-16919.03349485,0.0001998,2]
[387839947,1758915050959,-285.59895431,0.0001998,2]
[387839993,1758915389765,500.0,0.00030136,120]
[387839994,1758915390046,500.0,0.00030136,120]
[387839995,1758915390497,500.0,0.00030136,120]
[387839996,1758915390882,500.0,0.00030136,120]
[387839997,1758915391065,500.0,0.00030136,120]
[387839998,1758915391798,500.0,0.00030136,120]
[387839999,1758915392108,580.01,0.00030136,120]
[387840032,1758915766012,500.0,0.00030136,120]
[387840033,1758915766280,500.0,0.00030136,120]
[387840042,1758915893611,500.0,0.00030136,120]
[387840043,1758915894022,500.0,0.00030136,120]
[387840044,1758915894252,500.0,0.00030136,120]
[387840045,1758915894542,500.0,0.00030136,120]
[387840046,1758915894718,500.0,0.00030136,120]
[387840047,1758915894880,500.0,0.00030136,120]
[387840048,1758915895096,500.0,0.00030136,120]
[387840049,1758915895514,500.0,0.00030136,120]
[387840050,1758915895610,500.0,0.00030136,120]
[387840051,1758915895865,614.41,0.00030136,120]
[387840052,1758915896010,364.0,0.00018176,2]
[387840054,1758915915110,364.0,0.0001847,2]
[387840055,1758915915770,150.0,0.00018,2]
[387840056,1758915915851,150.0,0.00018,2]
[387840057,1758915915890,150.0,0.00018,2]
[387840059,1758915921268,1485.35,0.00018397,2]
[387840060,1758915921342,150.0,0.00018,2]
[387840061,1758915921464,150.0,0.00018,2]
[387840062,1758915923827,150.0,0.00018,2]
[387840063,1758915923862,150.0,0.00018,2]
[387840065,1758915926047,150.0,0.00018,2]
[387840068,1758915937172,150.0,0.00018,2]
[387840069,1758915937264,150.0,0.00018,2]
[387840070,1758915939117,150.0,0.00018,2]
[387840071,1758915939149,150.0,0.00018,2]
[387840253,1758915975869,162.35293121,0.0001847,2]
[387841029,1758916236599,-1000.0,0.00018541,2]
[387841030,1758916236608,-300.0,0.00018542,2]
[387841031,1758916236617,-2500.0,0.00018543,2]
[387841032,1758916236627,-2000.0,0.00018546,2]
[387841033,1758916236637,-300.0,0.00018546,2]
[387841034,1758916236646,-300.0,0.00018546,2]
[387841035,1758916236656,-224.0,0.00018549,2]
[387841036,1758916236666,-300.0,0.0001855,2]
[387841037,1758916236675,-1200.0,0.0001855,2]
[387841038,1758916236684,-300.0,0.0001855,2]
[387841039,1758916236693,-300.0,0.00018551,2]
[387841040,1758916236702,-300.0,0.00018551,2]
[387841041,1758916236711,-855.0,0.00018551,2]
[387841042,1758916236720,-150.0,0.00018551,2]
[387841043,1758916236729,-364.0,0.00018561,2]
[387841044,1758916236739,-250.0,0.00018568,2]
[387841045,1758916236748,-150.0,0.00018574,2]
[387841046,1758916236758,-395.63,0.00018588,2]
[387841047,1758916236768,-250.0,0.00018664,2]
[387841048,1758916236777,-364.0,0.00018692,2]
[387841049,1758916236786,-500.0,0.00018692,2]
[387841050,1758916236795,-500.0,0.00018692,2]
[387841051,1758916236805,-500.0,0.00018692,2]
[387841052,1758916236816,-500.0,0.00018692,2]
[387841053,1758916236825,-500.0,0.00018692,2]
[387841054,1758916236834,-500.0,0.00018692,2]
[387841055,1758916236844,-500.0,0.00018692,2]
[387841056,1758916236855,-500.0,0.00018692,2]
[387841057,1758916236865,-500.0,0.00018692,2]
[387841058,1758916236874,-500.0,0.00018692,2]
[387841059,1758916236883,-500.0,0.00018692,2]
[387841060,1758916236893,-500.0,0.00018692,2]
[387841061,1758916236902,-556.93901548,0.00018692,2]
[387841062,1758916236912,-500.0,0.00018692,2]
[387841063,1758916236921,-500.0,0.00018692,2]
[387841064,1758916236930,-500.0,0.00018692,2]
[387841065,1758916236940,-500.0,0.00018692,2]
[387841066,1758916236949,-500.0,0.00018692,2]
[387841067,1758916236959,-500.0,0.00018692,2]
[387841068,1758916236968,-500.0,0.00018692,2]
[387841069,1758916236982,-500.0,0.00018692,2]
[387841070,1758916236992,-500.0,0.00018692,2]
[387841071,1758916237002,-500.0,0.00018692,2]
[387841072,1758916237012,-500.0,0.00018692,2]
[387841073,1758916237021,-500.0,0.00018692,2]
[387841074,1758916237031,-500.0,0.00018692,2]
[387841075,1758916237040,-500.0,0.00018692,2]
[387841076,1758916237050,-500.0,0.00018692,2]
[387841077,1758916237060,-500.0,0.00018692,2]
[387841078,1758916237070,-194.39308694,0.00018692,2]
[387841079,1758916237079,-230.0,0.00018693,2]
[387841080,1758916237090,-1500.0,0.00018695,2]
[387841081,1758916237100,-168.0,0.00018703,2]
[387841082,1758916237109,-809.50342194,0.00018729,2]
[387841083,1758916237119,-162.38,0.00018771,2]
[387841084,1758916237128,-364.0,0.00018788,2]
[387841085,1758916237138,-172.68,0.00018816,2]
[387841086,1758916237148,-364.0,0.0001883,2]
[387841087,1758916237158,-361.52,0.0001883,2]
[387841088,1758916237166,-150.0,0.00018857,7]
[387841089,1758916237176,-364.0,0.00018865,2]
[387841090,1758916237185,-428.83004366,0.00018867,2]
[387841091,1758916237195,-250.0,0.0001887,2]
[387841092,1758916237204,-250.0,0.00018887,2]
[387841093,1758916237214,-168.0,0.00018951,2]
[387841094,1758916237223,-9552.16786547,0.00018994,2]
[387841095,1758916237233,-209.40437684,0.00018994,2]
[387841096,1758916237242,-168.0,0.00019033,2]
[387841097,1758916237251,-461.8,0.00019041,2]
[387841098,1758916237261,-295.31,0.00019041,2]
[387841099,1758916237271,-7808.32969857,0.00019049,2]
[387841100,1758916237281,-809.50342194,0.00019113,2]
[387841101,1758916237292,-168.0,0.00019187,2]
[387841102,1758916237302,-268.0,0.00019203,2]
[387841103,1758916237311,-809.50342194,0.00019233,2]
[387841104,1758916237321,-250.31,0.0001927,2]
[387841105,1758916237331,-268.0,0.00019301,2]
[387841106,1758916237341,-168.0,0.00019303,2]
[387841107,1758916237352,-202.1760498,0.00019477,2]
[387841108,1758916237362,-151.0,0.00019477,2]
[387841109,1758916237373,-151.0,0.00019477,2]
[387841110,1758916237383,-151.0,0.00019477,2]
[387841111,1758916237395,-200.0,0.00019477,2]
[387841112,1758916237404,-500.0,0.00019477,2]
[387841113,1758916237414,-233.72339247,0.00019477,2]
[387841114,1758916237424,-151.0,0.00019477,2]
[387841115,1758916237434,-500.0,0.00019477,2]
[387841116,1758916237444,-500.0,0.00019477,2]
[387841117,1758916237454,-500.0,0.00019477,2]
[387841118,1758916237464,-500.0,0.00019477,2]
[387841119,1758916237474,-200.0,0.00019477,2]
[387841120,1758916237483,-500.0,0.00019477,2]
[387841121,1758916237493,-500.0,0.00019477,2]
[387841122,1758916237503,-500.0,0.00019477,2]
[387841123,1758916237512,-500.0,0.00019477,2]
[387841124,1758916237522,-500.0,0.00019477,2]
[387841125,1758916237531,-500.0,0.00019477,2]
[387841126,1758916237540,-500.0,0.00019477,2]
[387841127,1758916237550,-500.0,0.00019477,2]
[387841128,1758916237560,-500.0,0.00019477,2]
[387841129,1758916237569,-646.65982734,0.00019477,2]
[387841130,1758916237578,-500.0,0.00019477,2]
[387841131,1758916237589,-500.0,0.00019477,2]
[387841132,1758916237600,-500.0,0.00019477,2]
[387841133,1758916237610,-489.71147464,0.00019477,2]
[387841134,1758916237619,-500.0,0.00019477,2]
[387841135,1758916237629,-500.0,0.00019477,2]
[387841136,1758916237640,-500.0,0.00019477,2]
[387841137,1758916237650,-500.0,0.00019477,2]
[387841138,1758916237659,-380.4212752,0.00019477,2]
[387841139,1758916237669,-500.0,0.00019477,2]
[387841140,1758916237679,-500.0,0.00019477,2]
[387841141,1758916237689,-151.82368847,0.00019477,2]
[387841142,1758916237699,-500.0,0.00019477,2]
[387841143,1758916237709,-500.0,0.00019477,2]
[387841144,1758916237718,-500.0,0.00019477,2]
[387841145,1758916237728,-500.0,0.00019477,2]
[387841146,1758916237737,-500.0,0.00019477,2]
[387841147,1758916237746,-500.0,0.00019477,2]
[387841148,1758916237755,-500.0,0.00019477,2]
[387841149,1758916237765,-500.0,0.00019477,2]
[387841150,1758916237774,-457.59778349,0.00019477,2]
[387841151,1758916237784,-500.0,0.00019477,2]
[387841152,1758916237793,-500.0,0.00019477,2]
[387841153,1758916237803,-500.0,0.00019477,2]
[387841154,1758916237812,-500.0,0.00019477,2]
[387841155,1758916237822,-500.0,0.00019477,2]
[387841156,1758916237831,-500.0,0.00019477,2]
[387841157,1758916237840,-500.0,0.00019477,2]
[387841158,1758916237850,-996.67630837,0.00019496,2]
[387841161,1758916237860,-2000.0,0.000195,2]
[387841162,1758916237869,-395.63,0.00019517,2]
[387841163,1758916237879,-809.50342196,0.00019568,2]
[387841164,1758916237889,-1702.0654,0.000197,2]
[387841165,1758916237899,-523.76072509,0.000197,2]
[387841166,1758916237908,-500.0,0.00019714,2]
[387841167,1758916237918,-500.0,0.00019714,2]
[387841168,1758916237928,-500.0,0.00019714,2]
[387841169,1758916237938,-150.0,0.00019714,2]
[387841170,1758916237947,-150.0,0.00019714,2]
[387841171,1758916237957,-150.0,0.00019714,2]
[387841172,1758916237966,-199.34642704,0.00019714,2]
[387841173,1758916237976,-150.0,0.00019714,2]
[387841174,1758916237986,-500.0,0.00019714,2]
[387841175,1758916237996,-150.0,0.00019714,2]
[387841176,1758916238005,-500.0,0.00019714,2]